Cogmind - Beta 16.1 @@@ ROGUE MODE // 2026.01.12 @ 18:00:44 Player: f3-rnm Result: Destroyed by P-80 Master with Gamma Rifle Performance ------------- Evolutions (8) 4000 Regions Visited (26) 5200 Robots Destroyed (209) 1045 Value Destroyed (11560) 11560 Prototype IDs (62) 1240 Alien Tech Used (3) 600 Bonus (12138) 12138 TOTAL SCORE: 35783 Bonus ------- Triggered High Security 500 High Alert Combat Kills 2287 Follower Combat Kills 5976 Registered with UFD 300 Met Optimus in HQ 500 Met Zhirov 300 Built Enhanced Grunts 300 Met R17 at Cetus 500 Found Hidden Lab 3000 Met R17 at Research 2000 Friendly Fire -3525 Cogmind --------- Core Integrity 0/1450 Matter 138/300 Energy 100/100 System Corruption 31% Temperature Cool (0) Movement Core (50) Location -2/Protoforge Parts ------- > --- POWER (2) -------- (None) > --- PROPULSION (7) --- (None) > --- UTILITY (10) ----- (None) > --- WEAPON (4) ------- (None) > --- INVENTORY (5) ---- Myomer Leg Heavy Shield Leg Peak State ------------ > --- POWER ------------ Compact Particle Reactor Graviton Reactor > --- PROPULSION ------- Biometal Leg Enhanced Biometal Leg Enhanced Biometal Leg Enhanced Multireflex Exoskeleton Centrium Leg Experimental Biometal Leg > --- UTILITY ---------- Experimental Cooling System Huge Storage Unit Spectral Analyzer Advanced Targeting Computer Core Analyzer Precision Matter Filter Transmission Jammer Medium Regenerative Plating Advanced Force Field System Mapper > --- WEAPON ----------- Heavy Quantum Rifle Warp Cannon Perforator > --- INVENTORY -------- Micro Antimatter Reactor Compact Particle Reactor Light Quantum Reactor Enhanced Multireflex Exoskeleton Enhanced Multireflex Exoskeleton Advanced Energy Well Large Matter Pod Advanced Sensor Array Improved Weapon Cycler Advanced Phase Shifter Centrium Medium Armor Plating Centrium Medium Armor Plating Experimental Powered Armor Graphene Brace Experimental Focal Shield System Mapper Deep Network Scanner Long-range Tractor Beam Transdimensional Reconstructor Integrated Dissipator Shock Maul Large Botcube [Rating: 211] Favorites ----------- Power Quantum Reactor Engine Ion Engine Power Core Light Fission Core Reactor Quantum Reactor Propulsion Centrium Heavy Treads Treads Centrium Heavy Treads Leg Enhanced Biometal Leg Wheel Compact Wheel Utility Transmission Jammer Device Transmission Jammer Storage Huge Storage Unit Processor Core Analyzer Hackware System Mapper Protection Centrium Medium Armor Plating Weapon Advanced KE Penetrator Energy Gun Heavy Quantum Rifle Energy Cannon Advanced Plasma Cannon Ballistic Gun Advanced KE Penetrator Ballistic Cannon Battle Cannon Launcher Grenade Launcher Special Weapon Guided Remote Datajack Impact Weapon Shock Maul Slashing Weapon Makeshift Sword Build | -11 -10 -10 -9 -6 -6 -6 -6 -6 -6 -6 -5 -5 -5 -5 -4 -4 -4 -4 -4 -3 -3 -3 -3 -2 -2 -2 ------- Run | Yrd Mat Sub Scr Fac Was Fac Ext Cet Arc Hub Fac Upp Upp Zhi Pro Fac Upp Upp War Pro Res Arm Lab Res Tes Frg Slots Evolved 16 | . . . . 8 . . . . . . 2 . . . . 2 . . . . 2 . . 2 . . Power 1 | . . . . . . . . . . . . . . . . 1 . . . . . . . . . . Propulsion 5 | . . . . 2 . . . . . . . . . . . . . . . . 2 . . 1 . . Utility 8 | . . . . 6 . . . . . . 1 . . . . . . . . . . . . 1 . . Weapon 2 | . . . . . . . . . . . 1 . . . . 1 . . . . . . . . . . Parts Attached 182 | 6 1 7 8 14 1 . 12 18 1 1 4 7 3 5 . 4 2 3 9 2 17 13 10 4 26 4 Power 22 | 1 . 1 . 2 . . 1 4 . . . . . 1 . . . . 1 . . 3 2 . 5 1 Engine 4 | 1 . 1 . 1 . . 1 . . . . . . . . . . . . . . . . . . . Core 2 | . . . . 1 . . . 1 . . . . . . . . . . . . . . . . . . Reactor 16 | . . . . . . . . 3 . . . . . 1 . . . . 1 . . 3 2 . 5 1 Propulsion 46 | 2 . . 4 2 . . 2 2 . . . . . . . . . 2 . . 11 4 2 4 10 1 Treads 9 | 2 . . 3 . . . 1 2 . . . . . . . . . 1 . . . . . . . . Leg 33 | . . . . 1 . . . . . . . . . . . . . . . . 11 4 2 4 10 1 Wheel 4 | . . . 1 1 . . 1 . . . . . . . . . . 1 . . . . . . . . Hover . | . . . . . . . . . . . . . . . . . . . . . . . . . . . Flight . | . . . . . . . . . . . . . . . . . . . . . . . . . . . Utility 67 | 1 1 2 . 7 1 . 7 8 1 . 3 6 3 4 . 2 2 1 6 1 1 4 1 . 3 2 Device 33 | . . 1 . 3 1 . 4 4 . . 1 3 1 2 . . 2 1 4 . . 3 1 . 2 . Storage 7 | 1 1 . . 1 . . 1 1 . . 1 . . 1 . . . . . . . . . . . . Processor 10 | . . . . 3 . . . . . . . 2 2 . . 1 . . 2 . . . . . . . Hackware 6 | . . . . . . . . . 1 . 1 . . . . 1 . . . . 1 . . . . 2 Protection 11 | . . 1 . . . . 2 3 . . . 1 . 1 . . . . . 1 . 1 . . 1 . Artifact . | . . . . . . . . . . . . . . . . . . . . . . . . . . . Weapon 47 | 2 . 4 4 3 . . 2 4 . 1 1 1 . . . 2 . . 2 1 5 2 5 . 8 . Energy Gun 4 | . . 1 . . . . . . . 1 . . . . . . . . . . . . 1 . 1 . Energy Cannon 3 | . . 1 . . . . . . . . 1 . . . . . . . . . . . 1 . . . Ballistic Gun 27 | 2 . 1 1 2 . . 2 3 . . . . . . . 2 . . 1 1 5 2 2 . 3 . Ballistic Cannon 4 | . . 1 . 1 . . . . . . . . . . . . . . . . . . . . 2 . Launcher 3 | . . . 1 . . . . . . . . . . . . . . . 1 . . . . . 1 . Special Weapon 4 | . . . 1 . . . . 1 . . . 1 . . . . . . . . . . 1 . . . Impact Weapon 1 | . . . . . . . . . . . . . . . . . . . . . . . . . 1 . Slashing Weapon 1 | . . . 1 . . . . . . . . . . . . . . . . . . . . . . . Piercing Weapon . | . . . . . . . . . . . . . . . . . . . . . . . . . . . Special Melee Weapon . | . . . . . . . . . . . . . . . . . . . . . . . . . . . Unidentified Prototypes 42 | . . . . . . . . 7 . 1 . 2 1 5 . . . . 5 . 3 4 4 . 9 1 Parts Lost 48 | . . 2 . 1 . . 7 2 . . . . . . . . . 1 . . 2 12 . 1 8 12 Power 10 | . . 1 . . . . 1 . . . . . . . . . . . . . . 3 . . 3 2 Propulsion 11 | . . . . . . . 2 1 . . . . . . . . . 1 . . . 3 . 1 1 2 Utility 13 | . . . . . . . 3 1 . . . . . . . . . . . . 1 1 . . 1 6 Weapon 14 | . . 1 . 1 . . 1 . . . . . . . . . . . . . 1 5 . . 3 2 Highest Loss Streak 7 | . . 1 . 1 . . 4 2 . . . . . . . . . 1 . . 2 5 . 1 3 7 To Critical Strikes 3 | . . 1 . . . . . 1 . . . . . . . . . 1 . . . . . . . . Average Backups 15 | 1 3 10 11 10 11 11 11 11 11 11 15 18 19 20 20 19 20 19 19 20 19 23 20 21 21 15 Power . | . 1 1 . . . . . 1 2 2 2 . . . 1 . . . . 1 1 1 2 1 1 2 Propulsion 1 | . 1 2 1 . . . . . 1 1 1 1 2 2 2 2 2 1 . 2 1 1 . . 1 2 Utility 10 | . . 2 4 5 7 7 7 6 7 7 11 15 16 16 16 16 15 15 14 14 14 14 15 15 12 9 Weapon 2 | . 1 3 3 3 3 2 3 2 . . . . . . . . 1 2 2 1 1 3 2 2 2 . Tool/Special . | . . . . . . . . . . . . . . . . . . . . . . . . . . . Unused Backups 70 | . . 2 9 . 7 . 1 4 . . . 14 . 3 . 1 . 1 . . 4 6 . 1 8 9 Power 8 | . . . 2 . 1 . . . . . . 1 . . . . . . . . . . . . . 4 Propulsion 12 | . . 1 . . . . . . . . . 3 . . . . . . . . 2 1 . . 2 3 Utility 31 | . . . 4 . 4 . 1 2 . . . 6 . 3 . 1 . . . . 2 3 . 1 3 1 Weapon 18 | . . 1 2 . 2 . . 2 . . . 4 . . . . . 1 . . . 2 . . 3 1 Tool/Special 1 | . . . 1 . . . . . . . . . . . . . . . . . . . . . . . Average Slot Usage (%) 83 | . 88 95 79 73 86 85 81 79 77 80 81 70 75 72 76 76 84 83 81 77 91 93 88 96 94 73 Engine 3 | . 14 13 14 4 . . 1 . . . . . . . . . . . . . . . . . . . Reactor 4 | . . . . . . . . 3 6 6 5 5 5 5 5 9 10 10 9 8 8 7 8 8 7 6 Treads 11 | . 28 28 26 6 6 6 6 12 13 13 11 11 11 11 11 10 10 8 4 4 . . . . . . Leg 7 | . . . . 3 6 6 . . . . . . . . . . . . . . 23 28 27 27 27 21 Wheel 1 | . . . 1 9 13 13 13 1 . . . . . . . . . 1 4 4 . . . . . . Device 11 | . . . . 13 23 25 21 25 22 20 16 15 16 11 11 10 16 15 14 8 11 9 6 16 16 11 Storage 7 | . 18 17 14 11 8 6 6 6 6 6 5 5 5 5 5 5 5 5 4 4 4 4 4 4 4 3 Processor 7 | . . . . 2 6 6 5 . . . . 4 10 13 11 13 15 15 17 21 20 16 14 13 13 11 Hackware 1 | . . . . . . . . . 2 6 11 . . . . 4 . . . . 3 4 4 4 4 3 Protection 6 | . . 5 14 5 . . 4 12 13 13 11 8 5 8 11 5 3 5 3 3 . 2 4 4 4 3 Energy Gun 1 | . . 5 . . . . 4 . . . . . . . . . . . . . . . . . 1 3 Energy Cannon 1 | . . 1 . . . . . . . . 4 4 5 2 5 3 . . . . . . 1 . . . Ballistic Gun 11 | . 27 13 4 5 6 6 5 12 13 12 11 10 11 11 11 12 21 21 20 20 19 18 12 17 7 . Ballistic Cannon 1 | . . 7 1 6 6 6 1 . . . . . . . . . . . . . . . . . 1 1 Peak Build Rating 211 | 7 8 16 22 65 65 63 63 112 111 111 130 127 121 122 124 136 137 137 166 169 197 198 172 181 211 203 Average Rating 102 | 5 7 11 15 52 63 62 57 101 109 110 124 116 118 117 124 129 135 134 139 167 189 178 147 176 192 163 On Entrance 104 | . 7 8 16 21 65 63 63 59 111 111 111 126 115 118 118 124 136 137 128 166 169 197 123 167 180 184 Avg Prop Armor Cover (%) 8 | . . . 11 10 11 11 7 6 . . . . . . . . . 2 7 7 10 . . . . . Naked Turns 46 | . . . . . . . . . . . . . . . . . . . . . . . . . . 46 Heaviest Build 184 | 14 34 39 37 63 54 50 58 75 75 74 143 157 148 147 147 148 149 149 178 184 184 172 155 150 176 149 Greatest Support 204 | 40 40 40 40 24 24 24 32 160 160 160 160 160 160 160 160 160 160 160 80 20 191 191 158 183 204 196 Greatest Overweight (x) 9 | 4 . . 2 3 2 2 3 3 . . . . . . . . . 1 8 9 9 1 . 1 . . Average Overweight (x) . | . . . . 2 2 1 1 . . . . . . . . . . . 7 8 1 . . . . . Largest Inventory Capacity 25 | 8 15 15 15 15 15 15 15 15 15 15 25 25 25 25 25 25 25 25 25 25 25 25 25 25 25 25 Average Capacity 20 | 7 10 15 15 15 15 15 15 15 15 15 22 25 25 25 25 25 25 25 25 25 25 25 25 25 25 23 Most Carried 25 | 4 5 15 15 15 15 15 15 15 15 15 23 25 25 25 24 25 25 25 25 25 25 25 25 25 25 25 Average Carried 19 | 2 4 12 13 14 15 15 14 14 15 15 19 22 23 24 24 24 24 23 23 24 24 24 22 24 24 19 Final Capacity 25 | 8 15 15 15 15 15 15 15 15 15 15 25 25 25 25 25 25 25 25 25 25 25 25 25 25 25 5 Final Carried 25 | 4 4 15 15 15 15 15 15 15 15 15 23 24 25 25 24 25 24 21 25 25 25 25 25 25 25 3 Scrap Suit Usage (%) 10 | . . . . 95 100 100 32 6 . . . . . . . . . . 71 100 5 . . . . . Parts Cannibalized 6 | . . . . 1 . . 5 . . . . . . . . . . . . . . . . . . . Class Distribution -------------------- 28% | Mutant 20% | Scavenger-Tank 11% | Hacker-Gunner 10% | Scavenger-Gunner 9% | Commander-Mutant 7% | Commander-Tank 4% | Scavenger-Mutant Dominant Class ---------------- Mutant | -10/Materials Mutant | -10/Subcaves Mutant | -9/Scraptown Mutant | -6/Factory Mutant | -6/Waste Mutant | -6/Factory Commander-Mutant | -6/Extension Commander-Mutant | -6/Cetus Scavenger-Mutant | -6/Archives Scavenger-Mutant | -6/Hub_04(d) Scavenger-Tank | -5/Factory Commander-Tank | -5/Upper Caves Scavenger-Tank | -5/Upper Caves Scavenger-Mutant | -5/Zhirov Scavenger-Tank | -4/Proximity Caves Scavenger-Tank | -4/Factory Scavenger-Tank | -4/Upper Caves Scavenger-Tank | -4/Upper Caves Scavenger-Tank | -4/Warlord Scavenger-Tank | -3/Proximity Caves Scavenger-Gunner | -3/Research Commander-Gunner | -3/Armory Scavenger-Gunner | -3/Lab Scavenger-Gunner | -2/Research Hacker-Gunner | -2/Testing Hacker-Gunner | -2/Protoforge Resources | -11 -10 -10 -9 -6 -6 -6 -6 -6 -6 -6 -5 -5 -5 -5 -4 -4 -4 -4 -4 -3 -3 -3 -3 -2 -2 -2 ----------- Run | Yrd Mat Sub Scr Fac Was Fac Ext Cet Arc Hub Fac Upp Upp Zhi Pro Fac Upp Upp War Pro Res Arm Lab Res Tes Frg Matter Collected 11913 | 152 . 651 40 972 . 70 854 824 144 222 150 410 126 104 114 36 178 110 . 296 1093 1684 150 450 2042 1041 Remotely 1437 | . . . . . . . . . . . . . . . . . . . . . . 445 . . 877 115 Salvage Created 13592 | 25 . 438 . 427 . . 772 497 246 191 213 729 631 156 74 36 230 130 . 105 1941 2267 . 469 2817 1198 Parts 635 | 6 . 21 . 10 . . 39 34 13 7 15 38 28 11 4 4 10 12 . 1 79 93 . 17 131 62 Haulers Intercepted 7 | . . . . . . . . . . 1 . . 1 . . . . . . . 4 . . . 1 . Recyclers Shooed 2 | . . . . . . . 1 . . . . . . . . . . . . . . . . . 1 . Parts Field Recycled . | . . . . . . . . . . . . . . . . . . . . . . . . . . . Retrieved Matter . | . . . . . . . . . . . . . . . . . . . . . . . . . . . Parts Self-Destructed 150 | . . 3 . . . . . . . . . 24 50 10 22 . 7 26 . 8 . . . . . . Prevented 9 | . . . . . . . . . . . . 1 8 . . . . . . . . . . . . . Parts Restored . | . . . . . . . . . . . . . . . . . . . . . . . . . . . Kills | -11 -10 -10 -9 -6 -6 -6 -6 -6 -6 -6 -5 -5 -5 -5 -4 -4 -4 -4 -4 -3 -3 -3 -3 -2 -2 -2 ------- Run | Yrd Mat Sub Scr Fac Was Fac Ext Cet Arc Hub Fac Upp Upp Zhi Pro Fac Upp Upp War Pro Res Arm Lab Res Tes Frg Combat Hostiles Destroyed 158 | . . 8 . 5 . . 13 1 3 1 6 3 7 . 2 . 2 5 . 1 17 30 . 5 33 16 Melee 1 | . . . . . . . . . . . . . . . . . . . . . . . . . 1 . Guns 110 | . . 7 . 1 . . 13 1 3 1 5 2 5 . 2 . 2 5 . 1 17 30 . 5 10 . Cannons 39 | . . 1 . 4 . . . . . . 1 1 1 . . . . . . . . . . . 17 14 AOE 1 | . . . . . . . . . . . . . . . . . . . . . . . . . 1 . Classes Destroyed 24 | 1 . 3 . 2 . . 4 2 1 3 1 . 1 . 1 . 1 . . . . 4 . . . . Worker 7 | . . . . . . . . . . 1 . . . . . 1 . . . . . . . 1 3 1 Builder 8 | . . . . . . . 3 . . . . . . . . 1 . . . . . . . . 1 3 Tunneler 3 | 2 . . . . . . . . . . . . . . . . . . . . 1 . . . . . Hauler 7 | . . . . . . . . . . 1 . . 1 . . . . . . . 4 . . . 1 . Recycler 3 | . . . . 1 . . . . . . . . . . . . . . . . 1 . . . 1 . Mechanic 1 | . . . . . . . . . . . . . . . . . . . . . . 1 . . . . Operator 5 | . . . . . . . . . 2 . . . . . . . . . . . 1 1 . . 1 . Drone 2 | . . . . . . . . . . . . . . . 1 . . . . . . . . . . 1 Watcher 3 | . . . . . . . 1 . . . . . . . . . . . . . . 1 . . 1 . Swarmer 14 | . . . . . . . . . . . 5 . 2 . . . . 5 . . 1 1 . . . . Grunt 49 | . . . . 4 . . 2 . . . . 1 3 . 1 . . . . . 9 14 . 3 9 3 Brawler 3 | . . . . . . . . . . 1 . 1 . . . . . . . . . . . 1 . . Duelist 5 | . . . . . . . . . . . . . 1 . . . . . . . 1 2 . . . 1 Protector 1 | . . . . . . . . . . . . . . . . . . . . . . 1 . . . . Sentry 23 | . . 1 . 1 . . 9 . 3 . 1 1 . . . . . . . 1 2 2 . 1 . 1 Demolisher 3 | . . . . . . . . . . . . . . . . . . . . . . 3 . . . . Specialist 4 | . . . . . . . . . . . . . . . . . . . . . . 4 . . . . Hunter 14 | . . . . . . . . . . . . . . . . . 2 . . . 4 . . . 6 2 Programmer 25 | . . . . . . . 1 . . . . . . . . . . . . . . 3 . . 17 4 Behemoth 2 | . . . . . . . 1 . . . . . 1 . . . . . . . . . . . . . Cetus Guard 1 | . . . . . . . . 1 . . . . . . . . . . . . . . . . . . Enhanced Grunt 2 | . . . . . . . . 1 . . . 1 . . . . . . . . . . . . . . Hotshot 4 | . . . . . . . . . . . . . . . . . . . . . . . . . . 4 Protovariant P 1 | . . . . . . . . . . . . . . . . . . . . . . . . . 1 . Artisan 1 | . . 1 . . . . . . . . . . . . . . . . . . . . . . . . Subdweller 7 | . . 7 . . . . . . . . . . . . . . . . . . . . . . . . Scrapoid 7 | . . . . . . . . 1 . . . 5 1 . . . . . . . . . . . . . Samaritan 1 | . . . . . . . . . . . . . . . . . 1 . . . . . . . . . Thug 2 | . . . . . . . . 2 . . . . . . . . . . . . . . . . . . Guerrilla 2 | . . . . . . . . 2 . . . . . . . . . . . . . . . . . . Best Kill Streak 12 | 2 . 2 . 3 . . 4 1 3 2 5 2 3 . 1 1 2 5 . 1 9 8 . 5 6 12 Combat Bots Only 12 | . . 2 . 3 . . 3 1 3 1 5 2 3 . 1 . 2 5 . 1 8 8 . 4 6 12 Max Kills in Single Turn 3 | 2 . 1 . 1 . . 1 2 1 1 3 1 1 . 1 1 1 2 . 1 2 2 . 1 2 2 Gunslinging 1 | . . . . . . . . . . . 1 . . . . . . 1 . . . 1 . . 1 . Exploded 1 | . . . . . . . . . . . . . . . . . . . . . . . . . 1 . Melee 1 | . . . . . . . . . . . . . . . . . . . . . . . . . 1 . Uniques/NPCs Destroyed 1 | . . . . . . . . 1 . . . . . . . . . . . . . . . . . . A7 (-6/Cetus) Combat | -11 -10 -10 -9 -6 -6 -6 -6 -6 -6 -6 -5 -5 -5 -5 -4 -4 -4 -4 -4 -3 -3 -3 -3 -2 -2 -2 -------- Run | Yrd Mat Sub Scr Fac Was Fac Ext Cet Arc Hub Fac Upp Upp Zhi Pro Fac Upp Upp War Pro Res Arm Lab Res Tes Frg Hostile Shots Fired 1657 | . . 43 . 61 . 42 291 41 4 2 36 13 41 . 16 . 10 18 . 38 86 412 . 23 261 219 Missed 613 | . . 12 . 27 . 24 115 16 . 2 5 5 11 . 6 . 1 2 . 14 38 185 . 8 75 67 Deflected 5 | . . . . . . . . . . . . . . . . . . . . . . . . . 3 2 Hits 1044 | . . 31 . 34 . 18 176 25 4 . 31 8 30 . 10 . 9 16 . 24 48 227 . 15 186 152 Melee 28 | . . . . . . . . . . . . . . . . . . . . . . 10 . . . 18 Projectile 1016 | . . 31 . 34 . 18 176 25 4 . 31 8 30 . 10 . 9 16 . 24 48 217 . 15 186 134 AOE 6 | . . . . . . . . . . . . . . . . . . . . . . 4 . . . 2 Critical Strikes 59 | . . 1 . . . . 3 7 2 1 . 1 1 . 1 . . 2 . . 4 9 . 1 10 16 Actively Blocked 16 | . . . . . . . . . . . . . . . . . . . . . . 3 . 1 10 2 Part Disruptions 4 | . . . . . . . . . . . . . . . . . . . . . . . . . 4 . Damage Taken 19960 | . . 635 . 571 . 134 1648 653 118 262 525 293 531 . 381 63 182 361 . 298 740 3798 . 350 4228 4189 Core 2453 | . . 141 . 26 . 11 183 91 . 45 22 45 49 . . . 19 29 . 17 . 371 . 63 295 1046 Absorbed by Shields 1550 | . . . . . . . 70 102 . . . . 120 . . . . . . 120 324 360 . . 454 . Ignored by Resistances 316 | . . . . 12 . . . . . . . . . . . . . . . . 155 65 . 9 75 . Regen/Repaired (Parts) 1099 | . . . . 6 . . 50 67 48 54 76 . . . . . . . 99 . . . 116 54 490 39 Core Remaining (%) 78 | 100 . . 43 . . . . . . 58 . . . . 88 . . . . 94 . . 90 . . . Volleys Fired 635 | 1 1 51 1 26 10 11 62 46 14 19 19 35 12 4 8 2 6 8 1 6 39 82 20 11 112 28 Largest 5 | 2 2 2 1 2 2 2 2 2 2 2 3 3 3 2 3 3 4 4 1 5 5 5 1 4 4 2 Hottest 260 | 40 40 110 . 73 70 70 110 108 70 70 168 168 168 70 168 168 140 140 260 175 175 155 100 140 180 180 Shots Fired 1518 | 2 2 99 1 52 11 16 114 86 28 37 48 71 35 7 24 6 24 32 1 30 183 322 20 44 195 28 Gun 1310 | 2 2 76 . 35 1 5 96 85 28 37 38 62 24 6 16 4 24 32 . 30 183 322 14 44 137 7 Cannon 201 | . . 23 . 17 10 11 17 . . . 10 7 11 . 8 2 . . . . . . 6 . 58 21 Launcher 2 | . . . . . . . 1 . . . . . . . . . . . 1 . . . . . . . Special 5 | . . . 1 . . . . 1 . . . 2 . 1 . . . . . . . . . . . . Kinetic 1357 | 2 2 84 . 52 11 16 70 83 28 37 38 62 24 6 16 4 24 32 . 30 183 322 14 44 152 21 Thermal 155 | . . 15 . . . . 43 2 . . 10 7 11 . 8 2 . . 1 . . . 6 . 43 7 Explosive 1 | . . . . . . . 1 . . . . . . . . . . . . . . . . . . . Electromagnetic . | . . . . . . . . . . . . . . . . . . . . . . . . . . . Robot Hit Streak 19 | . . 11 4 6 . 4 15 7 6 3 8 9 6 7 6 8 18 4 . 12 14 12 . 6 15 19 Robot Miss Streak 17 | . . 2 . 5 2 3 5 7 4 6 4 4 2 . 7 . 1 3 . 3 4 7 . 2 12 17 Penetration Max 2 | . . . . . . . . 1 1 1 1 1 1 1 . . 1 . . . 2 2 . 1 1 2 Secondary Targets 28 | . . . . 1 . . 4 . 1 . 1 . . . . . . 3 . . 6 8 . 2 2 . Max Gunslinging Chain 2 | . . . . 1 . . 1 . 1 . 1 . . . . . . 2 . . 1 1 . 1 1 . Shots Hit Robots 908 | . . 57 1 28 . 5 97 51 17 17 24 37 19 6 9 2 19 19 . 21 100 188 . 31 127 33 Core Hits 524 | 2 . 18 . 15 . 1 74 28 9 6 10 19 12 2 5 1 9 6 . 6 54 102 . 17 88 40 Critical Kills 83 | . . 1 . 2 . . 2 4 . 2 1 2 1 . 1 1 1 2 . 1 15 7 . 1 23 16 Critical Parts Destroyed 101 | . . . . 2 1 . 1 6 1 2 1 5 2 2 1 . 2 3 . 5 13 9 . . 32 13 Critical Strikes 191 | . . 1 . 4 1 . 5 10 1 4 2 7 3 2 2 1 3 8 . 7 28 16 . 1 55 30 Meltdown 5 | . . . . . . . . . . . . . 1 . . 1 . . . . . . . . 3 . Destroy 176 | . . 1 . 4 1 . 3 10 1 4 2 7 2 2 2 . 3 8 . 7 28 16 . 1 46 28 Blast 2 | . . . . . . . 2 . . . . . . . . . . . . . . . . . . . Smash 8 | . . . . . . . . . . . . . . . . . . . . . . . . . 6 2 Melee Attacks 54 | . . . . . . . . . . . . . . . . . . . . . . . . . 30 24 Impact 54 | . . . . . . . . . . . . . . . . . . . . . . . . . 30 24 Slashing . | . . . . . . . . . . . . . . . . . . . . . . . . . . . Piercing . | . . . . . . . . . . . . . . . . . . . . . . . . . . . Sneak Attacks 4 | . . . . . . . . . . . . . . . . . . . . . . . . . 2 2 Combat Hostiles . | . . . . . . . . . . . . . . . . . . . . . . . . . . . Follow-up Attacks . | . . . . . . . . . . . . . . . . . . . . . . . . . . . Martial Strikes 7 | . . . . . . . . . . . . . . . . . . . . . . . . . 5 2 Damage Inflicted 25570 | 25 . 969 . 715 55 118 2198 1793 593 527 680 934 739 173 287 66 267 395 . 251 1948 6826 . 883 3921 1207 Guns 21000 | 25 . 764 . 485 28 64 1894 1793 593 527 582 765 496 173 219 . 267 395 . 251 1948 6826 . 883 2022 . Cannons 2661 | . . 205 . 230 27 54 283 . . . 98 169 243 . 68 66 . . . . . . . . 987 231 Explosions 350 | . . . . . . . 21 . . . . . . . . . . . . . . . . . 131 198 Melee 1559 | . . . . . . . . . . . . . . . . . . . . . . . . . 781 778 Ramming . | . . . . . . . . . . . . . . . . . . . . . . . . . . . Kinetic 21090 | 25 . 780 . 715 55 118 1238 1758 593 527 582 765 496 173 219 . 267 395 . 251 1948 6826 . 883 2245 231 Thermal 2571 | . . 189 . . . . 939 35 . . 98 169 243 . 68 66 . . . . . . . . 764 . Explosive 350 | . . . . . . . 21 . . . . . . . . . . . . . . . . . 131 198 Electromagnetic . | . . . . . . . . . . . . . . . . . . . . . . . . . . . Impact 1559 | . . . . . . . . . . . . . . . . . . . . . . . . . 781 778 Slashing . | . . . . . . . . . . . . . . . . . . . . . . . . . . . Piercing . | . . . . . . . . . . . . . . . . . . . . . . . . . . . Highest Corruption 31 | . . . . 2 17 17 18 18 18 18 . . . . . . . . . . . 5 5 . 24 31 Average Corruption 15 | . . . . 2 8 17 17 18 18 18 . . . . . . . . . . . 3 5 . 18 24 Corruption Purged . | . . . . . . . . . . . . . . . . . . . . . . . . . . . Corruption Blocked . | . . . . . . . . . . . . . . . . . . . . . . . . . . . Effects 305 | . . . . 1 5 18 61 28 7 19 . . . . . . . . . . . 15 13 . 109 29 Message Errors 57 | . . . . 1 2 . 19 4 1 6 . . . . . . . . . . . . . . 18 6 Matter Fused 63 | . . . . . . 4 11 6 . 4 . . . . . . . . . . . 5 5 . 22 6 Heat Flow Errors 39 | . . . . . . 4 6 2 3 4 . . . . . . . . . . . 3 1 . 11 5 Energy Discharges 41 | . . . . . 2 6 6 3 1 2 . . . . . . . . . . . 2 1 . 17 1 Parts Rejected 3 | . . . . . . . . . . . . . . . . . . . . . . 1 . . 2 . Parts Fused 4 | . . . . . . 1 1 . . . . . . . . . . . . . . . . . 2 . Data Loss (minor) 39 | . . . . . . 2 6 6 . 1 . . . . . . . . . . . 2 3 . 15 4 Data Loss (major) 16 | . . . . . 1 . 3 1 1 . . . . . . . . . . . . 1 2 . 4 3 Misfires 11 | . . . . . . . 5 . . . . . . . . . . . . . . . . . 6 . Alerts 9 | . . . . . . 1 2 2 . . . . . . . . . . . . . . 1 . 3 . Misdirections 8 | . . . . . . . . . 1 1 . . . . . . . . . . . . . . 3 3 Weapon Failures 15 | . . . . . . . 2 4 . 1 . . . . . . . . . . . 1 . . 6 1 Overload Shots . | . . . . . . . . . . . . . . . . . . . . . . . . . . . Overflow Damage 682 | . . . . . . . . . . . . . 10 . . . . . . . . . . . 501 171 Projectiles 10 | . . . . . . . . . . . . . 10 . . . . . . . . . . . . . Explosions . | . . . . . . . . . . . . . . . . . . . . . . . . . . . Melee 672 | . . . . . . . . . . . . . . . . . . . . . . . . . 501 171 Knockbacks 26 | . . . . 1 . . . . . . . . . . . . . . . . . . . . 18 7 Impact 6 | . . . . . . . . . . . . . . . . . . . . . . . . . 5 1 Kinetic 19 | . . . . 1 . . . . . . . . . . . . . . . . . . . . 12 6 Secondary 1 | . . . . . . . . . . . . . . . . . . . . . . . . . 1 . Self-Inflicted Damage . | . . . . . . . . . . . . . . . . . . . . . . . . . . . Shots . | . . . . . . . . . . . . . . . . . . . . . . . . . . . Rammed . | . . . . . . . . . . . . . . . . . . . . . . . . . . . Targets Rammed . | . . . . . . . . . . . . . . . . . . . . . . . . . . . Kicked . | . . . . . . . . . . . . . . . . . . . . . . . . . . . Crushed . | . . . . . . . . . . . . . . . . . . . . . . . . . . . Highest Temperature 274 | . . 2 . 12 . 250 241 156 144 236 72 156 274 . 69 60 24 30 . 75 132 169 146 16 223 145 Average Temperature 52 | . . 2 . 6 . 96 45 31 68 108 22 65 144 . 23 38 16 17 . 40 36 29 51 7 93 69 Received Heat Transfer 2441 | . . 177 . 186 . 27 531 45 36 51 18 18 68 . 48 . . . . 14 106 432 . 81 180 423 Effects 1 | . . . . . . . . . . . . . 1 . . . . . . . . . . . . . Energy Bleed 1 | . . . . . . . . . . . . . 1 . . . . . . . . . . . . . Siege Activations . | . . . . . . . . . . . . . . . . . . . . . . . . . . . Martial Activations 2 | . . . . . . . . . . . . . . . . . . . . . . . . . 1 1 Total Turns 97 | . . . . . . . . . . . . . . . . . . . . . . . . . 43 54 Longest Duration 54 | . . . . . . . . . . . . . . . . . . . . . . . . . 43 54 Shielding Activations . | . . . . . . . . . . . . . . . . . . . . . . . . . . . Robots Disrupted . | . . . . . . . . . . . . . . . . . . . . . . . . . . . Combat Hostiles . | . . . . . . . . . . . . . . . . . . . . . . . . . . . Robots Corrupted 4 | . . . . . . . . . . . . . . . . . . . . . . . . . 2 2 Combat Hostiles 3 | . . . . . . . . . . . . . . . . . . . . . . . . . 1 2 Parts Fried 2 | . . . . . . . . . . . . . . . . . . . . . . . . . 2 . Impact Corruptions 17 | . . . . . . . . . . . . . . . . . . . . . . . . . 13 4 Robots Melted 5 | . . . . . . . . . . . . . 1 . . 1 . . . . . . . . 3 . Combat Hostiles 4 | . . . . . . . . . . . . . 1 . . . . . . . . . . . 3 . Parts Melted 15 | . . . . . . . . . . . . . 3 . . . . . . 1 . . . . 11 . Heat Transferred 3858 | . . 235 . . . . 2075 75 . . 150 250 337 . 100 100 . . . . . . . . 536 . Parts Sabotaged 2 | . . . . . . . . . . . . . . . . . . . . . . 2 . . . . Parts Stolen . | . . . . . . . . . . . . . . . . . . . . . . . . . . . Parts Stripped . | . . . . . . . . . . . . . . . . . . . . . . . . . . . Power Chain Reactions . | . . . . . . . . . . . . . . . . . . . . . . . . . . . Alert | -11 -10 -10 -9 -6 -6 -6 -6 -6 -6 -6 -5 -5 -5 -5 -4 -4 -4 -4 -4 -3 -3 -3 -3 -2 -2 -2 ------- Run | Yrd Mat Sub Scr Fac Was Fac Ext Cet Arc Hub Fac Upp Upp Zhi Pro Fac Upp Upp War Pro Res Arm Lab Res Tes Frg Maximum Alert Level 5 | . . . . 1 . . 2 1 1 3 2 . . . . 2 . . . . 1 5 . . 3 3 Low Security (%) 47 | 100 100 . . 92 100 100 82 . 40 25 . . . . . . . . . . 34 9 . 100 57 . Level 1 25 | . . . . 7 . . 5 99 60 46 40 . . . . . . . . . 65 22 . . 6 . Level 2 16 | . . . . . . . 12 . . 19 59 . . . . 100 . . . . . 5 . . 12 98 Level 3 6 | . . . . . . . . . . 7 . . . . . . . . . . . 3 . . 22 1 Level 4 1 | . . . . . . . . . . . . . . . . . . . . . . 15 . . . . Level 5 3 | . . . . . . . . . . . . . . . . . . . . . . 37 . . . . High Security . | . . . . . . . . . . . . . . . . . . . . . . 6 . . . . Max Security . | . . . . . . . . . . . . . . . . . . . . . . . . . . . Peak Influence 2629 | 10 6 . . 215 66 49 440 362 227 714 541 . . . . 521 . . . . 286 2629 . 124 763 713 Initial 484 | . 6 . . . 66 . . 227 77 65 341 . . . . 484 . . . . . 142 . . 27 426 Average 317 | 1 . . . 92 28 8 101 280 183 319 400 . . . . 487 . . . . 199 1300 . 50 279 544 Influence Increases 11878 | 10 . 20 . 461 2 69 858 360 220 879 494 300 853 10 579 357 73 300 . 78 736 3067 . 199 1342 611 Destroy 0b10 Robot/C 5500 | . . 20 . 260 . 20 440 160 80 280 180 120 400 . 280 . 40 240 . 60 460 1400 . 100 660 300 Destroy 0b10 Robot/NC 290 | 10 . . . 5 . . 30 10 10 25 20 . 5 10 10 10 . . . . 50 25 . 5 40 25 Destroy Leader 888 | . . . . 50 . 10 54 . . 64 52 30 30 . 40 . 10 30 . 10 90 224 . 20 104 70 Allied During Kill 2946 | . . . . 99 . 4 258 170 90 369 58 150 418 . 249 6 23 30 . 8 62 952 . . . . Successful Hack 96 | . . . . . . . 14 . . . . . . . . 7 . . . . . . . 5 70 . Disable Machine 810 | . . . . 45 . 30 . . 30 105 45 . . . . 30 . . . . 15 255 . 15 150 90 Destroy Structure 793 | . . . . 2 2 5 17 20 10 36 124 . . . . 4 . . . . 44 166 . 9 243 111 Advance Influence 300 | . . . . . . . . . . . . . . . . 300 . . . . . . . . . . Partial Spotted 60 | . . . . . . . 30 . . . . . . . . . . . . . . . . . 30 . Lose Combat Pursuer 195 | . . . . . . . 15 . . . 15 . . . . . . . . . 15 45 . 45 45 15 Influence Decreases 11199 | . 10 20 . 270 193 69 452 573 226 368 699 635 549 472 286 189 534 268 32 78 464 720 2619 150 632 691 Entered New Map 4996 | . 4 . . . 125 . . 179 116 122 357 183 31 462 . 109 172 . 32 . . 130 2619 . 22 333 Time Decay 5342 | . 6 20 . 180 40 69 372 294 90 206 342 452 478 10 286 80 362 258 . 78 444 350 . 140 547 238 Lost Part 433 | . . . . 10 . . 60 20 . . . . . . . . . 10 . . 20 120 . 10 63 120 Lost Ally 428 | . . . . 80 28 . 20 80 20 40 . . 40 . . . . . . . . 120 . . . . Squads Dispatched 50 | . . . . 4 . 1 3 . . 3 7 . . . . 1 . . . . 6 12 . . 10 3 Investigation 12 | . . . . 2 . 1 1 . . 1 2 . . . . 1 . . . . 2 1 . . 1 . Extermination 12 | . . . . 1 . . . . . . 1 . . . . . . . . . . 2 . . 7 1 Reinforcement 18 | . . . . 1 . . 2 . . 2 . . . . . . . . . . 4 5 . . 2 2 Assault 5 | . . . . . . . . . . . 1 . . . . . . . . . . 4 . . . . Garrison 3 | . . . . . . . . . . . 3 . . . . . . . . . . . . . . . Intercept . | . . . . . . . . . . . . . . . . . . . . . . . . . . . Searches Triggered . | . . . . . . . . . . . . . . . . . . . . . . . . . . . Construction Impeded 2 | . . . . . . . 1 . . . . . . . . . . . . . 1 . . . . . Haulers Reinforced 3 | . . . . . . . . . . 1 . . . . . . . . . . 1 . . . 1 . Active Scanning Responses . | . . . . . . . . . . . . . . . . . . . . . . . . . . . Cargo Convoy Interrupts . | . . . . . . . . . . . . . . . . . . . . . . . . . . . Stealth | -11 -10 -10 -9 -6 -6 -6 -6 -6 -6 -6 -5 -5 -5 -5 -4 -4 -4 -4 -4 -3 -3 -3 -3 -2 -2 -2 --------- Run | Yrd Mat Sub Scr Fac Was Fac Ext Cet Arc Hub Fac Upp Upp Zhi Pro Fac Upp Upp War Pro Res Arm Lab Res Tes Frg Distress Signals 17 | . . . . 2 . . . 2 . 2 . . . . . . . . . . 5 2 . . 1 3 Communications Jammed 91 | . . . . . . . . . 1 4 . . . . 2 . . . . . 1 45 . . 2 36 Distress Signals 88 | . . . . . . . . . 1 3 . . . . . . . . . . 1 45 . . 2 36 Times Spotted 359 | . . 9 . 15 6 2 25 10 9 17 11 6 18 . 11 . 1 11 . 4 31 89 . 9 40 35 Peak Tracking Total 15 | . . 1 . 4 6 1 5 5 1 4 5 2 9 . 4 . 1 4 . 2 6 11 . 4 3 15 Tactical Retreats 11 | . . . . . . . 1 . . . 1 . . . . . . . . . 1 3 . 1 3 1 Traps | -11 -10 -10 -9 -6 -6 -6 -6 -6 -6 -6 -5 -5 -5 -5 -4 -4 -4 -4 -4 -3 -3 -3 -3 -2 -2 -2 ------- Run | Yrd Mat Sub Scr Fac Was Fac Ext Cet Arc Hub Fac Upp Upp Zhi Pro Fac Upp Upp War Pro Res Arm Lab Res Tes Frg Traps Triggered 20 | . 2 . . 3 . 3 2 . . 1 . . . . . 1 . . . . 1 3 . . 2 2 Indirectly . | . . . . . . . . . . . . . . . . . . . . . . . . . . . Trap Hack Attempts . | . . . . . . . . . . . . . . . . . . . . . . . . . . . Triggered . | . . . . . . . . . . . . . . . . . . . . . . . . . . . Disarmed . | . . . . . . . . . . . . . . . . . . . . . . . . . . . Reprogrammed . | . . . . . . . . . . . . . . . . . . . . . . . . . . . Reused . | . . . . . . . . . . . . . . . . . . . . . . . . . . . Traps Extracted . | . . . . . . . . . . . . . . . . . . . . . . . . . . . Installed . | . . . . . . . . . . . . . . . . . . . . . . . . . . . Triggered . | . . . . . . . . . . . . . . . . . . . . . . . . . . . Machines | -11 -10 -10 -9 -6 -6 -6 -6 -6 -6 -6 -5 -5 -5 -5 -4 -4 -4 -4 -4 -3 -3 -3 -3 -2 -2 -2 ---------- Run | Yrd Mat Sub Scr Fac Was Fac Ext Cet Arc Hub Fac Upp Upp Zhi Pro Fac Upp Upp War Pro Res Arm Lab Res Tes Frg Machines Disabled 60 | . . 1 . 3 . 2 . . 2 7 3 . 2 . . 2 . . 1 . 1 17 1 1 11 6 Max in Single Turn 3 | . . 1 . 1 . 1 . . 1 1 2 . . . . 2 . . 1 . . 1 1 1 1 3 Garrison Access 2 | . . . . . . . . . . 1 . . . . . . . . . . . . . . 1 . Machines Repaired . | . . . . . . . . . . . . . . . . . . . . . . . . . . . Machines Dismantled . | . . . . . . . . . . . . . . . . . . . . . . . . . . . Machines Sabotaged . | . . . . . . . . . . . . . . . . . . . . . . . . . . . Overloaded Fab Kills . | . . . . . . . . . . . . . . . . . . . . . . . . . . . Hacking | -11 -10 -10 -9 -6 -6 -6 -6 -6 -6 -6 -5 -5 -5 -5 -4 -4 -4 -4 -4 -3 -3 -3 -3 -2 -2 -2 --------- Run | Yrd Mat Sub Scr Fac Was Fac Ext Cet Arc Hub Fac Upp Upp Zhi Pro Fac Upp Upp War Pro Res Arm Lab Res Tes Frg Machines Accessed 37 | . . 1 1 2 . 1 5 . . 2 3 . . 4 . 2 . . . . 3 1 2 2 7 1 Terminals 19 | . . . . . . . 5 . . 1 1 . . . . 2 . . . . 2 1 . 2 4 1 Fabricators . | . . . . . . . . . . . . . . . . . . . . . . . . . . . Repair Stations 3 | . . . . . . . . . . . . . . . . . . . . . 1 . . . 2 . Recycling Units 5 | . . . . 2 . 1 . . . . 2 . . . . . . . . . . . . . . . Scanalyzers . | . . . . . . . . . . . . . . . . . . . . . . . . . . . Garrison Access 2 | . . . . . . . . . . 1 . . . . . . . . . . . . . . 1 . Total Hacks 86 | . . 1 3 4 . 1 8 . . 5 5 . . 17 . 5 . . . . 6 3 9 3 14 2 Successful 58 | . . 1 3 4 . 1 3 . . 1 3 . . 17 . 2 . . . . . 1 9 3 8 2 Failed 28 | . . . . . . . 5 . . 4 2 . . . . 3 . . . . 6 2 . . 6 . Catastrophic 7 | . . . . . . . 3 . . . . . . . . 2 . . . . 1 . . . 1 . Database Lockouts . | . . . . . . . . . . . . . . . . . . . . . . . . . . . Manual 24 | . . . . 2 . 1 . 1 . 4 4 . . . . 3 . . . . 7 . 1 1 . . Terminals 35 | . . . . . . . 8 . . 3 2 . . . . 5 . . . . 2 3 . 3 7 2 Fabricators . | . . . . . . . . . . . . . . . . . . . . . . . . . . . Repair Stations 9 | . . . . . . . . . . . . . . . . . . . . . 4 . . . 5 . Recycling Units 8 | . . . . 4 . 1 . . . . 3 . . . . . . . . . . . . . . . Scanalyzers . | . . . . . . . . . . . . . . . . . . . . . . . . . . . Garrison Access 4 | . . . . . . . . . . 2 . . . . . . . . . . . . . . 2 . Terminal Hacks 45 | . . 1 3 . . . 3 . . . 1 . . 17 . 2 . . . . . 1 9 3 3 2 Record 17 | . . . 3 . . . . . . . . . . 5 . . . . . . . . 9 . . . Part Schematic 4 | . . . . . . . . . . . . . . 4 . . . . . . . . . . . . Robot Analysis 5 | . . . . . . . . . . . . . . 4 . 1 . . . . . . . . . . Prototype ID Bank 4 | . . . . . . . . . . . . . . 4 . . . . . . . . . . . . Open Door 2 | . . . . . . . 2 . . . . . . . . . . . . . . . . . . . Branch Access Points 3 | . . . . . . . . . . . 1 . . . . 1 . . . . . . . 1 . . Emergency Access Points 1 | . . . . . . . . . . . . . . . . . . . . . . . . . 1 . Terminal Index 1 | . . . . . . . . . . . . . . . . . . . . . . . . . . 1 Recycling Unit Index 1 | . . . . . . . . . . . . . . . . . . . . . . . . 1 . . Alert Level 5 | . . . . . . . 1 . . . . . . . . . . . . . . 1 . . 2 1 Registered Components 1 | . . . . . . . . . . . . . . . . . . . . . . . . 1 . . Proto ID Catalog 1 | . . 1 . . . . . . . . . . . . . . . . . . . . . . . . Fabricator Hacks . | . . . . . . . . . . . . . . . . . . . . . . . . . . . Repair Station Hacks 4 | . . . . . . . . . . . . . . . . . . . . . . . . . 4 . Scan Component 2 | . . . . . . . . . . . . . . . . . . . . . . . . . 2 . Repair 2 | . . . . . . . . . . . . . . . . . . . . . . . . . 2 . Recycling Unit Hacks 2 | . . . . 2 . . . . . . . . . . . . . . . . . . . . . . Process 1 | . . . . 1 . . . . . . . . . . . . . . . . . . . . . . Retrieve Matter 1 | . . . . 1 . . . . . . . . . . . . . . . . . . . . . . Scanalyzer . | . . . . . . . . . . . . . . . . . . . . . . . . . . . Garrison Access Hacks 2 | . . . . . . . . . . 1 . . . . . . . . . . . . . . 1 . Seal Access 2 | . . . . . . . . . . 1 . . . . . . . . . . . . . . 1 . Unauthorized Hacks 5 | . . . . 2 . 1 . . . . 2 . . . . . . . . . . . . . . . Terminals . | . . . . . . . . . . . . . . . . . . . . . . . . . . . Fabricators . | . . . . . . . . . . . . . . . . . . . . . . . . . . . Repair Stations . | . . . . . . . . . . . . . . . . . . . . . . . . . . . Recycling Units 5 | . . . . 2 . 1 . . . . 2 . . . . . . . . . . . . . . . Scrapoids 5 | . . . . 2 . 1 . . . . 2 . . . . . . . . . . . . . . . Scanalyzers . | . . . . . . . . . . . . . . . . . . . . . . . . . . . Garrison Access . | . . . . . . . . . . . . . . . . . . . . . . . . . . . Data Cores Recovered . | . . . . . . . . . . . . . . . . . . . . . . . . . . . Used . | . . . . . . . . . . . . . . . . . . . . . . . . . . . Hacking Detections 22 | . . . . 1 . . 3 1 . 2 1 . . . . 2 . . . . 3 1 . 1 6 1 Full Trace Events 6 | . . . . . . . 1 . . 1 . . . . . 1 . . . . 1 1 . . 1 . Feedback Events 1 | . . . . . . . 1 . . . . . . . . . . . . . . . . . . . Corruption 1 | . . . . . . . 1 . . . . . . . . . . . . . . . . . . . Feedback Blocked . | . . . . . . . . . . . . . . . . . . . . . . . . . . . Robot Schematics Acquired . | . . . . . . . . . . . . . . . . . . . . . . . . . . . Robots Built . | . . . . . . . . . . . . . . . . . . . . . . . . . . . Authchips . | . . . . . . . . . . . . . . . . . . . . . . . . . . . Time . | . . . . . . . . . . . . . . . . . . . . . . . . . . . Total Robot Build Rating . | . . . . . . . . . . . . . . . . . . . . . . . . . . . Part Schematics Acquired 4 | . . . . . . . . . . . . . . 4 . . . . . . . . . . . . Parts Built . | . . . . . . . . . . . . . . . . . . . . . . . . . . . Authchips . | . . . . . . . . . . . . . . . . . . . . . . . . . . . Time . | . . . . . . . . . . . . . . . . . . . . . . . . . . . Total Part Build Rating . | . . . . . . . . . . . . . . . . . . . . . . . . . . . Part Studies Acquired . | . . . . . . . . . . . . . . . . . . . . . . . . . . . Parts Repaired 1 | . . . . . . . . . . . . . . . . . . . . . . . . . 1 . Time 58 | . . . . . . . . . . . . . . . . . . . . . . . . . 58 . Parts Recycled . | . . . . . . . . . . . . . . . . . . . . . . . . . . . Recycled Matter . | . . . . . . . . . . . . . . . . . . . . . . . . . . . Retrieved Matter . | . . . . . . . . . . . . . . . . . . . . . . . . . . . Retrieved Components . | . . . . . . . . . . . . . . . . . . . . . . . . . . . Parts Scanalyzed . | . . . . . . . . . . . . . . . . . . . . . . . . . . . Part Schematics Acquired . | . . . . . . . . . . . . . . . . . . . . . . . . . . . Parts Damaged . | . . . . . . . . . . . . . . . . . . . . . . . . . . . Bothacking | -11 -10 -10 -9 -6 -6 -6 -6 -6 -6 -6 -5 -5 -5 -5 -4 -4 -4 -4 -4 -3 -3 -3 -3 -2 -2 -2 ------------ Run | Yrd Mat Sub Scr Fac Was Fac Ext Cet Arc Hub Fac Upp Upp Zhi Pro Fac Upp Upp War Pro Res Arm Lab Res Tes Frg Used RIF Installer . | . . . . . . . . . . . . . . . . . . . . . . . . . . . Robots Hacked . | . . . . . . . . . . . . . . . . . . . . . . . . . . . Non-combat . | . . . . . . . . . . . . . . . . . . . . . . . . . . . Combat . | . . . . . . . . . . . . . . . . . . . . . . . . . . . Robot Hacks Applied . | . . . . . . . . . . . . . . . . . . . . . . . . . . . Relay Couplers Released . | . . . . . . . . . . . . . . . . . . . . . . . . . . . Fabnet Peak Effective % . | . . . . . . . . . . . . . . . . . . . . . . . . . . . Robots Rewired 26 | . . . . . . . 16 . . . . . 2 . . . . . . . . 8 . . . . Allies Hacked . | . . . . . . . . . . . . . . . . . . . . . . . . . . . Hacks Repelled . | . . . . . . . . . . . . . . . . . . . . . . . . . . . Allies | -11 -10 -10 -9 -6 -6 -6 -6 -6 -6 -6 -5 -5 -5 -5 -4 -4 -4 -4 -4 -3 -3 -3 -3 -2 -2 -2 -------- Run | Yrd Mat Sub Scr Fac Was Fac Ext Cet Arc Hub Fac Upp Upp Zhi Pro Fac Upp Upp War Pro Res Arm Lab Res Tes Frg Total Allies 63 | . . . 1 10 1 5 19 5 . . 10 1 2 . . . . . . . . 8 . . . 1 Largest Group 22 | . . . 1 6 3 7 22 20 11 8 16 16 10 6 5 4 4 3 1 1 1 8 . . . 1 Highest-Rated Group 1010 | . . . 56 202 112 205 772 1010 587 515 910 910 654 474 427 378 378 282 133 133 133 510 . . . 30 Highest-Rated Ally 159 | . . . 56 56 56 31 159 159 96 96 96 137 137 137 137 137 137 137 133 133 133 133 . . . 30 Initial UFD Resources 22 | . . . . 22 16 16 13 13 13 13 17 11 11 11 14 14 14 14 14 18 18 18 18 22 22 22 Total Orders 32 | . . . 3 . . . 2 4 2 2 1 9 . 1 . . 4 . 2 2 . . . . . . STAY 16 | . . . 2 . . . 1 2 1 1 1 3 . 1 . . 2 . 1 1 . . . . . . FOLLOW 16 | . . . 1 . . . 1 2 1 1 . 6 . . . . 2 . 1 1 . . . . . . Ally Attacks 850 | . . . . 76 46 19 94 84 32 76 40 27 67 . 63 . 1 17 . 11 26 171 . . . . Total Damage 27492 | . . . . 1267 724 280 1687 1575 1184 2640 966 857 2325 . 2703 . 37 993 . 491 1865 7898 . . . . Kills 157 | . . . . 8 1 1 14 12 3 16 7 3 16 . 15 . . 7 . 2 9 43 . . . . Allies Corrupted 1 | . . . . . . . . . . . . . . . . . . . . . . 1 . . . . Allies Melted . | . . . . . . . . . . . . . . . . . . . . . . . . . . . Intel | -11 -10 -10 -9 -6 -6 -6 -6 -6 -6 -6 -5 -5 -5 -5 -4 -4 -4 -4 -4 -3 -3 -3 -3 -2 -2 -2 ------- Run | Yrd Mat Sub Scr Fac Was Fac Ext Cet Arc Hub Fac Upp Upp Zhi Pro Fac Upp Upp War Pro Res Arm Lab Res Tes Frg Active Infowar (turns) 14428 | . . 101 . . 93 418 398 394 190 422 758 1325 930 322 620 175 948 663 478 363 1270 840 411 358 2496 455 Optics 6467 | . . 101 . . . . . . . . . . . . . . . . 173 363 1270 840 411 358 2496 455 Sensors 1820 | . . . . . 93 418 344 . . . . . . . . . 318 . . . 258 . . . 1 388 Jamming 12197 | . . . . . . . 54 394 190 422 758 1325 930 322 620 175 948 663 308 . 959 605 411 358 2310 445 Robot Analysis Total 5 | . . . . . . . . . . . . . . 4 . 1 . . . . . . . . . . Derelict Logs Recovered 9 | . . 1 3 . . . . . . . . . 1 . 1 . 1 2 . . . . . . . . Drone Launches . | . . . . . . . . . . . . . . . . . . . . . . . . . . . Drone Recoveries . | . . . . . . . . . . . . . . . . . . . . . . . . . . . Exploration | -11 -10 -10 -9 -6 -6 -6 -6 -6 -6 -6 -5 -5 -5 -5 -4 -4 -4 -4 -4 -3 -3 -3 -3 -2 -2 -2 ------------- Run | Yrd Mat Sub Scr Fac Was Fac Ext Cet Arc Hub Fac Upp Upp Zhi Pro Fac Upp Upp War Pro Res Arm Lab Res Tes Frg Turns Passed 22528 | 71 152 1898 3999 497 139 418 1331 646 190 422 762 1325 1233 322 620 175 948 663 478 363 1270 840 411 358 2496 501 Spaces Moved 13487 | 34 65 1072 2469 323 95 280 719 276 78 220 417 717 708 179 371 98 576 357 308 208 899 430 296 263 1726 303 Core 102 | 12 . . . . . . . . . . . . . . . . . . . . . . . . . 90 Treads 7345 | 22 65 1072 2219 . . . . 240 78 220 417 717 708 179 371 98 576 357 6 . . . . . . . Legs 3685 | . . . . . . . . . . . . . . . . . . . . . 757 430 296 263 1726 213 Wheels 2355 | . . . 250 323 95 280 719 36 . . . . . . . . . . 302 208 142 . . . . . Hover . | . . . . . . . . . . . . . . . . . . . . . . . . . . . Flight . | . . . . . . . . . . . . . . . . . . . . . . . . . . . Fastest Speed 50 | 50 160 160 130 109 109 97 91 90 160 160 160 160 160 160 160 160 160 160 130 150 111 106 108 108 98 50 Average Speed 139 | 166 160 160 157 119 109 108 105 152 160 160 160 160 160 160 160 160 160 176 144 157 119 110 108 109 105 92 Slowest Speed 260 | 250 160 160 260 145 109 109 109 160 160 160 160 160 160 160 160 160 160 240 240 160 181 182 108 178 226 226 Overloaded Moves 12 | . . . . . . . . . . . . . . . . . . . . . . . . . 6 6 Propulsion Burnouts . | . . . . . . . . . . . . . . . . . . . . . . . . . . . Robots Hopped . | . . . . . . . . . . . . . . . . . . . . . . . . . . . Potential Cave-ins 8 | . . . . . 6 . . . . . . . . . . . . . . . . . . . . 2 Cave-ins Triggered . | . . . . . . . . . . . . . . . . . . . . . . . . . . . Teleports 2 | . . . . . . . . . . . . . . . . . . . . . . 1 . . . 1 Exploration Rate (%) 45 | 3 14 58 76 8 86 7 80 56 74 27 7 57 73 60 63 3 64 56 38 52 24 42 94 4 94 13 Regions Visited 26 Branch Regions 18 Pre-discovered Areas 5 | . . 1 1 . . . . . . . . . . 3 . . . . . . . . . . . . Known Exits Taken 11 | . . . . . . 1 1 . . . 1 . . . . 1 1 1 1 1 1 . 1 1 . . Unknown Exits Taken 13 | 1 1 1 1 . . . . 1 1 1 . 1 1 1 1 . . . . . . 1 . . 1 . Scrap Searched 17 | . . 5 3 . . . . . . . . . 2 . 1 . 3 2 . 1 . . . . . . Spaces Dug 38 | . . . . . 1 2 2 . . . 4 . . . . . . . . . 2 . . . 21 6 Terrain Destroyed 419 | . . 1 . 2 8 4 13 49 8 13 66 40 14 . 12 1 6 4 . 6 10 23 . 1 95 43 Melee 13 | . . . . . . . . . . . . . . . . . . . . . . . . . 11 2 Projectile 250 | . . 1 . 2 8 4 3 48 8 13 26 40 14 . 12 1 6 4 . 6 6 15 . . 26 7 AOE 93 | . . . . . . . 10 . . . 40 . . . . . . . . . . 8 . . 21 14 Terrain Rammed . | . . . . . . . . . . . . . . . . . . . . . . . . . . . Walls Destroyed . | . . . . . . . . . . . . . . . . . . . . . . . . . . . Machines Disabled . | . . . . . . . . . . . . . . . . . . . . . . . . . . . Actions | -11 -10 -10 -9 -6 -6 -6 -6 -6 -6 -6 -5 -5 -5 -5 -4 -4 -4 -4 -4 -3 -3 -3 -3 -2 -2 -2 --------- Run | Yrd Mat Sub Scr Fac Was Fac Ext Cet Arc Hub Fac Upp Upp Zhi Pro Fac Upp Upp War Pro Res Arm Lab Res Tes Frg Total 15956 | 43 109 1155 2600 399 119 379 1187 418 115 252 471 841 782 211 380 111 587 372 343 226 993 615 366 307 2150 425 Wait 868 | . 38 5 74 22 14 86 210 42 22 10 17 31 33 . 1 . . . . 9 11 8 19 16 160 40 Move 13462 | 33 64 1071 2468 323 94 279 718 275 77 219 416 716 707 178 370 97 575 356 307 207 898 429 295 262 1725 303 Hop . | . . . . . . . . . . . . . . . . . . . . . . . . . . . Pick Up 190 | 3 1 14 21 6 . 1 8 11 . . 9 22 1 4 . 3 1 2 10 1 10 16 8 6 25 7 Fast Attach 120 | 6 4 2 2 8 . 1 6 11 1 2 4 1 2 10 . 3 1 . 5 . 9 11 2 2 22 5 Attach 85 | . 1 2 5 5 . . 3 4 . . 1 7 1 1 1 2 . 3 6 1 6 6 11 1 8 10 Detach 13 | . . 1 1 . . . . . . . . 2 2 . . . . . . . . . 3 . 1 3 Swap 86 | . . 4 4 2 1 . 5 6 . . 1 2 . 1 . 1 2 1 2 1 5 10 5 2 26 5 Drop 222 | . . 4 24 7 . 1 10 23 1 2 4 25 1 13 . 3 2 2 12 1 15 14 3 7 46 2 Fire 635 | 1 1 51 1 26 10 11 62 46 14 19 19 35 12 4 8 2 6 8 1 6 39 82 20 11 112 28 Melee 47 | . . . . . . . . . . . . . . . . . . . . . . . . . 25 22 Ram . | . . . . . . . . . . . . . . . . . . . . . . . . . . . Kick . | . . . . . . . . . . . . . . . . . . . . . . . . . . . Crush . | . . . . . . . . . . . . . . . . . . . . . . . . . . . Escape Stasis 12 | . . . . . . . 10 . . . . . . . . . . . . . . 2 . . . . Rewire 215 | . . 1 . . . . 155 . . . . . 22 . . . . . . . . 37 . . . . Trap . | . . . . . . . . . . . . . . . . . . . . . . . . . . . Miscellaneous 1 | . . . . . . . . . . . . . 1 . . . . . . . . . . . . . Route ------- -11/Scrapyard -10/Materials -10/Subcaves (discovered 3 exits: [*Mat x2] / *Scr) -9/Scraptown -6/Factory (discovered 2 exits: *Low / Ext) -6/Waste -6/Factory -6/Extension (discovered 2 exits: *Fac / *Cet) -6/Cetus (discovered 2 exits: *Fac / [*Arc]) -6/Archives (discovered 2 exits: *Fac / *Hub) -6/Hub_04(d) -5/Factory (discovered 2 exits: *Upp x2) -5/Upper Caves -5/Upper Caves -5/Zhirov -4/Proximity Caves -4/Factory (discovered 2 exits: *Upp x2) -4/Upper Caves -4/Upper Caves -4/Warlord -3/Proximity Caves -3/Research (discovered 2 exits: Res / *Arm) -3/Armory (discovered 2 exits: *Res / *Lab) -3/Lab -2/Research (discovered 2 exits: *Tes x2) -2/Testing (discovered 3 exits: [*Acc] / [*Sec] / *Frg) -2/Protoforge History --------- Turn | Location | Event 14 | -11/Scrapyard | Discovered new exit (range 15) 72 | -11/Scrapyard | Entered Materials 198 | -10/Materials | Discovered new exit (range 6) 224 | -10/Materials | Entered Subcaves 225 | -10/Subcaves | Approached by a straggling Scientist 313 | -10/Subcaves | Build established: Mutant 725 | -10/Subcaves | Shifting Twisted Machinery released Flamer 728 | -10/Subcaves | Shifting Twisted Machinery released Scrap Shield 956 | -10/Subcaves | Ambushed by angry Subdweller bent on revenge 996 | -10/Subcaves | Discovered new exit (range 8) 1122 | -10/Subcaves | Shifting Twisted Machinery released Battle Cannon 1198 | -10/Subcaves | Core integrity fell below 50% 1302 | -10/Subcaves | Learned location of Storage (-9) 1473 | -10/Subcaves | A swath of the cavern ceiling suddenly collapsed 1507 | -10/Subcaves | Discovered new exit (range 6) 1671 | -10/Subcaves | Visited 4L-MR0's lab 1696 | -10/Subcaves | Found Rainbow Chip 2122 | -10/Subcaves | Entered Scraptown 2623 | -9/Scraptown | Visited UFD Registry 2623 | -9/Scraptown | Registered with UFD as "Autocircuit" 2647 | -9/Scraptown | Visited SPCMW 2681 | -9/Scraptown | Visited Awakened 2692 | -9/Scraptown | Visited Comm Corps 2719 | -9/Scraptown | Heard Great Nut preacher, LISTEN AND RECITE! 2823 | -9/Scraptown | Visited Botcube Research 2846 | -9/Scraptown | Visited Scrapoid Pod Storage 2890 | -9/Scraptown | Visited Analyses Database 2918 | -9/Scraptown | Visited A0-MCA Data Center 2934 | -9/Scraptown | Visited Scrap Suit Storage 2962 | -9/Scraptown | Visited Observation Area 2988 | -9/Scraptown | Visited Abandonware Association 3018 | -9/Scraptown | Visited LU-1G1's Boring Crew 3060 | -9/Scraptown | Learned abandonware demo "TRNCOAT.EXE" 3308 | -9/Scraptown | Scanned Subdweller tech in exchange for log data 3313 | -9/Scraptown | Learned location of Warlord (-4) 3314 | -9/Scraptown | Learned Factory terminal intel 3316 | -9/Scraptown | Learned location of 1 exit from Factory 3556 | -9/Scraptown | Delivered Scrap Shield to a Scientist 3673 | -9/Scraptown | Found Scrapoid Pod 3735 | -9/Scraptown | Visited Derelict Rescue Squad 3753 | -9/Scraptown | Found DRS Beacon 5118 | -9/Scraptown | Found Scrap Suit 5131 | -9/Scraptown | Found Scrap Suit 5257 | -9/Scraptown | Botcube activated 5277 | -9/Scraptown | Botcube completed mutation into treaded form, armed with 2 guns. 5302 | -9/Scraptown | Visited CPS Storage 5316 | -9/Scraptown | Attached CPS modules to *fodder. 5399 | -9/Scraptown | Found Lrg. Botcube 5515 | -9/Scraptown | Given a B+ rating by A0-MCA 5528 | -9/Scraptown | Found A0-MCA's Component Scanner 5921 | -9/Scraptown | Discovered new exit (range 5) 6039 | -9/Scraptown | Build established: Derelict-Mutant 6048 | -9/Scraptown | Met Optimus 6048 | -9/Scraptown | Accepted into 0bPrime 6121 | -9/Scraptown | Entered Factory 6121 | -6/Factory | Accompanied by 1 ally 6121 | -6/Factory | Evolved 8 slots: Propulsion x2, Utility x6 6122 | -6/Factory | Identified exit to Extension 6123 | -6/Factory | Loaded intel: 26 terminal locations 6287 | -6/Factory | Scrapoid reinforcements arrived 6330 | -6/Factory | Found Scrap Suit 6504 | -6/Factory | Discovered new exit (range 8) 6507 | -6/Factory | Scrapoids reinforcements arrived? 6566 | -6/Factory | Identified exit to Lower Caves 6618 | -6/Factory | Sucked down chute 6618 | -6/Factory | Entered Waste 6619 | -6/Waste | Met a frightened Derelict 6633 | -6/Waste | EMP discharged 6661 | -6/Waste | Spotted C-40 Crusher 6691 | -6/Waste | Spotted C-40 Crusher 6691 | -6/Waste | Spotted C-40 Crusher 6691 | -6/Waste | Spotted C-40 Crusher 6691 | -6/Waste | Spotted C-40 Crusher 6694 | -6/Waste | Spotted C-40 Crusher 6733 | -6/Waste | EMP discharged 6733 | -6/Waste | System corruption reached 10% 6745 | -6/Waste | Discovered new exit (range 11) 6756 | -6/Waste | Identified exit to Factory 6757 | -6/Waste | Entered Factory 6807 | -6/Factory | 6 allies followed down the chute 6913 | -6/Factory | Build established: Mutant 6947 | -6/Factory | Allied Derelicts emerged from ambush trap array 6966 | -6/Factory | Discovered exit to Extension (range 13) 7115 | -6/Factory | Scrapoid reinforcements arrived 7175 | -6/Factory | Entered Extension 7175 | -6/Extension | Accompanied by 7 allies 7415 | -6/Extension | Build established: Commander-Mutant 7560 | -6/Extension | Lost 4 parts (1n2u1w) 7609 | -6/Extension | Rescued a captive Derelict 7610 | -6/Extension | Rescued a captive Derelict 8154 | -6/Extension | Spotted B-75 Beast 8158 | -6/Extension | Allies destroyed B-75 Beast 8172 | -6/Extension | Spotted B-75 Beast 8189 | -6/Extension | Destroyed B-75 Beast 8218 | -6/Extension | Lost 3 allies 8295 | -6/Extension | Rescued A7 8433 | -6/Extension | Discovered new exit (range 10) 8434 | -6/Extension | Discovered new exit (range 6) 8439 | -6/Extension | Identified exit to Cetus 8506 | -6/Extension | Entered Cetus 8506 | -6/Cetus | Accompanied by 20 allies (A7) 8511 | -6/Cetus | Acquired a Cetus Manufacturing Module code from A7 8519 | -6/Cetus | Spotted Cetus Guard 8520 | -6/Cetus | Spotted Cetus Guard 8522 | -6/Cetus | Spotted Cetus Guard 8523 | -6/Cetus | Spotted Cetus Guard 8533 | -6/Cetus | Allies destroyed Cetus Guard 8534 | -6/Cetus | Destroyed Cetus Guard 8536 | -6/Cetus | Allies destroyed Cetus Guard 8542 | -6/Cetus | Allies destroyed Cetus Guard 8656 | -6/Cetus | Discovered new exit (range 15) 8670 | -6/Cetus | Attached CPS modules to A7. 8703 | -6/Cetus | Started Cetus Manufacturing Module 8728 | -6/Cetus | Manufactured an Enhanced Grunt 8749 | -6/Cetus | Spotted Cetus Guard 8749 | -6/Cetus | Spotted Cetus Guard 8752 | -6/Cetus | Spotted Cetus Guard 8753 | -6/Cetus | Manufactured an Enhanced Grunt 8763 | -6/Cetus | Spotted Cetus Guard 8765 | -6/Cetus | Allies destroyed Cetus Guard 8770 | -6/Cetus | Allies destroyed Cetus Guard 8773 | -6/Cetus | Allies destroyed Cetus Guard 8777 | -6/Cetus | Allies destroyed Cetus Guard 8778 | -6/Cetus | Manufactured an Enhanced Grunt 8794 | -6/Cetus | Found Scrap Suit 8801 | -6/Cetus | Lost 5 allies 8803 | -6/Cetus | Manufactured an Enhanced Grunt 8812 | -6/Cetus | Discovered new exit (range 15) 8820 | -6/Cetus | Met Revision 17 8828 | -6/Cetus | Manufactured an Enhanced Grunt 8962 | -6/Cetus | Lost 6 allies 8996 | -6/Cetus | Murdered A7 9002 | -6/Cetus | Extracted ID and sensor layout for unrecognized location from A7's data core 9011 | -6/Cetus | Found Prototype Protection 9011 | -6/Cetus | Identified Med. Regenerative Plating 9152 | -6/Cetus | Entered Archives 9152 | -6/Archives | Accompanied by 11 allies 9210 | -6/Archives | Discovered new exit (range 16) 9213 | -6/Archives | Lost 3 allies 9228 | -6/Archives | Discovered new exit (range 15) 9342 | -6/Archives | Entered Hub_04(d) 9342 | -6/Hub_04(d) | Accompanied by 8 allies 9342 | -6/Hub_04(d) | Discovered new exit (range 10) 9469 | -6/Hub_04(d) | Build established: Scavenger-Mutant 9764 | -6/Hub_04(d) | Entered Factory 9764 | -5/Factory | Accompanied by 6 allies 9764 | -5/Factory | Evolved 2 slots: Utility x1, Weapon x1 9835 | -5/Factory | Discovered new exit (range 10) 10112 | -5/Factory | Build established: Scavenger-Tank 10194 | -5/Factory | Identified exit to Upper Caves 10356 | -5/Factory | Scrapoid reinforcements arrived 10364 | -5/Factory | First assault squad dispatched 10513 | -5/Factory | Scrapoid reinforcements arrived 10526 | -5/Factory | Entered Upper Caves 10526 | -5/Upper Caves | Accompanied by 16 allies 10528 | -5/Upper Caves | UFD Scientist delivered a prototype 10533 | -5/Upper Caves | Found Prototype Protection 10535 | -5/Upper Caves | Identified Enh. Scrap Shield 10714 | -5/Upper Caves | Attached CPS modules to 05F17-D. 10867 | -5/Upper Caves | Murdered 3 allies 11049 | -5/Upper Caves | Found Scrap Suit 11082 | -5/Upper Caves | Build established: Commander-Tank 11146 | -5/Upper Caves | Found Prototype Device 11147 | -5/Upper Caves | Identified Exp. Thermal Shield 11193 | -5/Upper Caves | Lrg. Botcube activated 11225 | -5/Upper Caves | Lrg. Botcube completed mutation into wheeled form, armed with 4 guns. 11228 | -5/Upper Caves | Attached CPS modules to Large Mutated Botcube. 11286 | -5/Upper Caves | Found Scrap Suit 11336 | -5/Upper Caves | Attracted the attention of an 0b10 checkpoint 11381 | -5/Upper Caves | Found Scrap Suit 11781 | -5/Upper Caves | Encountered a Warlord checkpoint 11817 | -5/Upper Caves | Discovered new exit (range 9) 11851 | -5/Upper Caves | Entered another Upper Caves area 11851 | -5/Upper Caves | Accompanied by 10 allies 12009 | -5/Upper Caves | Spotted B-75 Beast 12018 | -5/Upper Caves | Destroyed B-75 Beast 12068 | -5/Upper Caves | Learned Factory emergency access door positions 12320 | -5/Upper Caves | Attracted the attention of an 0b10 outpost 12322 | -5/Upper Caves | Activated DRS Beacon 12365 | -5/Upper Caves | Lost 3 allies 12608 | -5/Upper Caves | Build established: Scavenger-Tank 13042 | -5/Upper Caves | Discovered new exit (range 9) 13084 | -5/Upper Caves | Entered Zhirov 13084 | -5/Zhirov | Accompanied by 6 allies 13084 | -5/Zhirov | Discovered new exit (range 3) 13116 | -5/Zhirov | Met Zhirov 13157 | -5/Zhirov | Found Alien Artifact 13157 | -5/Zhirov | Identified Integrated Dissipator 13157 | -5/Zhirov | Installed Integrated Dissipator, increased core heat dissipation (+20) 13216 | -5/Zhirov | Attached CPS modules to Q588-u. 13303 | -5/Zhirov | Found Alien Artifact 13344 | -5/Zhirov | Learned location of Quarantine (-3) 13344 | -5/Zhirov | Learned location of Testing (-2) 13344 | -5/Zhirov | Learned location of Command (-1) 13355 | -5/Zhirov | Zhirov requested help retrieving the SGEMP Prototype 13406 | -5/Zhirov | Entered Proximity Caves 13406 | -4/Proximity Caves | Accompanied by 6 allies 13494 | -4/Proximity Caves | Spotter reported a threat 13672 | -4/Proximity Caves | Spotter reported a threat 13673 | -4/Proximity Caves | Attracted the attention of an 0b10 outpost 13692 | -4/Proximity Caves | Learned 12 Research zone layouts 14009 | -4/Proximity Caves | Discovered new exit (range 8) 14026 | -4/Proximity Caves | Entered Factory 14026 | -4/Factory | Accompanied by 4 allies 14026 | -4/Factory | Evolved 2 slots: Power x1, Weapon x1 14042 | -4/Factory | Identified exit to Upper Caves 14201 | -4/Factory | Entered Upper Caves 14201 | -4/Upper Caves | Accompanied by 4 allies 14219 | -4/Upper Caves | Learned Research interactive machine intel 14527 | -4/Upper Caves | Build established: Scavenger-Gunner 14829 | -4/Upper Caves | Build established: Scavenger-Tank 14910 | -4/Upper Caves | Entered a destroyed Warlord outpost 15125 | -4/Upper Caves | Discovered new exit (range 9) 15136 | -4/Upper Caves | Identified exit to Upper Caves 15149 | -4/Upper Caves | Entered another Upper Caves area 15149 | -4/Upper Caves | Accompanied by 3 allies 15151 | -4/Upper Caves | Attracted the attention of an 0b10 checkpoint 15166 | -4/Upper Caves | Spotted B-86 Titan 15179 | -4/Upper Caves | Allies destroyed B-86 Titan 15446 | -4/Upper Caves | Learned Research security intel 15586 | -4/Upper Caves | Learned Research trap positions 15791 | -4/Upper Caves | Discovered new exit (range 9) 15807 | -4/Upper Caves | Identified exit to Warlord 15812 | -4/Upper Caves | Entered Warlord 15812 | -4/Warlord | Accompanied by 1 ally 15952 | -4/Warlord | Found Prototype Energy Gun 16114 | -4/Warlord | Found Prototype Device 16114 | -4/Warlord | Identified Exp. Focal Shield 16117 | -4/Warlord | Found Prototype Processor 16117 | -4/Warlord | Identified Spectral Analyzer 16132 | -4/Warlord | Found Prototype Reactor 16132 | -4/Warlord | Identified Vortex Chain Reactor 16146 | -4/Warlord | Attached Rainbow Chip, gained temporary slots: Power, Propulsion, Utility, Weapon 16168 | -4/Warlord | Found Prototype Hackware 16274 | -4/Warlord | Discovered new exit (range 14) 16289 | -4/Warlord | Identified exit to Proximity Caves 16290 | -4/Warlord | Entered Proximity Caves 16290 | -3/Proximity Caves | Accompanied by 1 ally 16355 | -3/Proximity Caves | Attracted the attention of an 0b10 checkpoint 16592 | -3/Proximity Caves | Discovered new exit (range 9) 16592 | -3/Proximity Caves | Spotted B-86 Titan 16650 | -3/Proximity Caves | Identified exit to Research 16653 | -3/Proximity Caves | Entered Research 16653 | -3/Research | Accompanied by 1 ally 16653 | -3/Research | Evolved 2 slots: Propulsion x2 16654 | -3/Research | Identified exit to Research 16655 | -3/Research | Loaded intel: 73 trap records 16657 | -3/Research | Loaded intel: 44 interactive machine locations 16833 | -3/Research | Discovered new exit (range 19) 16853 | -3/Research | Revision forces began assault on 0b10 16870 | -3/Research | Destroyed 8 combat bots 16879 | -3/Research | Identified exit to Armory 16887 | -3/Research | Met up with Revision 17++ 16895 | -3/Research | Identified System Mapper 17188 | -3/Research | Spotted B-86 Titan 17198 | -3/Research | Allies destroyed B-86 Titan 17347 | -3/Research | Allied Derelicts emerged from ambush trap array 17353 | -3/Research | Research terminal network offline 17517 | -3/Research | Build established: Scavenger-Gunner 17923 | -3/Research | Entered Armory 17923 | -3/Armory | Accompanied by 1 ally 17949 | -3/Armory | Build established: Hacker-Gunner 18106 | -3/Armory | P-80 Master assimilated allied Assassin 8b 18227 | -3/Armory | Found Prototype Protection 18227 | -3/Armory | Identified Centrium Heavy Armor Plating 18340 | -3/Armory | Discovered exit to Research (range 5) 18344 | -3/Armory | Build established: Commander-Gunner 18417 | -3/Armory | Allied Derelicts emerged from ambush trap array 18423 | -3/Armory | First assault squad dispatched 18469 | -3/Armory | Lost 4 allies 18553 | -3/Armory | Lost 3 parts (1p2n) 18578 | -3/Armory | Allied Derelicts emerged from ambush trap array 18710 | -3/Armory | Build established: Hacker-Gunner 18712 | -3/Armory | High security lockdown imminent 18761 | -3/Armory | Destroyed 8 combat bots 18761 | -3/Armory | Found Lrg. Botcube 18762 | -3/Armory | Identified Transdimensional Reconstructor 18762 | -3/Armory | Warped through subspace to slip node 18762 | -3/Armory | Discovered new exit (range 1) 18763 | -3/Armory | Entered Lab 18777 | -3/Lab | Lost 4 allies 18779 | -3/Lab | Lost 5 parts (1p1n3w) 18789 | -3/Lab | Discovered exit to Research (range 9) 18801 | -3/Lab | Hidden lab's door opened automatically 18801 | -3/Lab | Sensor layout match revealed 18802 | -3/Lab | Gained access to the hidden lab's interior 18855 | -3/Lab | Unable to decrypt terminal 18868 | -3/Lab | Found Prototype Energy Cannon 18872 | -3/Lab | Found Prototype Energy Gun 18935 | -3/Lab | Identified Warp Cannon 18937 | -3/Lab | Identified Hyp. EM Gauss Rifle 18955 | -3/Lab | Found Alien Artifact 18955 | -3/Lab | Identified Core Regenerator 18955 | -3/Lab | Used Core Regenerator, restored core integrity (+325) 18982 | -3/Lab | Found Prototype Protection 18985 | -3/Lab | Found Prototype Hackware 19022 | -3/Lab | Found Prototype Special Weapon 19022 | -3/Lab | Identified Gui. Remote Datajack 19087 | -3/Lab | Found Integrated Dissipator 19094 | -3/Lab | Found Transdimensional Reconstructor 19138 | -3/Lab | Unable to decrypt terminal 19141 | -3/Lab | Unable to decrypt terminal 19141 | -3/Lab | Opened the door to a hidden lab 19174 | -3/Lab | Entered Research 19174 | -2/Research | Evolved 2 slots: Propulsion x1, Utility x1 19194 | -2/Research | Identified exit to Testing 19332 | -2/Research | Build established: Scavenger-Gunner 19532 | -2/Research | Entered Testing 19629 | -2/Testing | Spotted PP-Y3F9SFYIB8 19641 | -2/Testing | Destroyed PP-Y3F9SFYIB8 19697 | -2/Testing | Found System Mapper 19868 | -2/Testing | System corruption reached 10% 19949 | -2/Testing | Discovered new exit (range 9) 20210 | -2/Testing | Found Prototype Ballistic Cannon 20210 | -2/Testing | Identified Perforator 20298 | -2/Testing | Identified Exp. Powered Armor 20384 | -2/Testing | Lost 3 parts (2p1n) 20552 | -2/Testing | Build established: Hacker-Gunner 20649 | -2/Testing | Spotted Striker 20650 | -2/Testing | Spotted Striker 20749 | -2/Testing | Repaired Transmission Jammer 20764 | -2/Testing | Found Prototype Launcher 20764 | -2/Testing | Identified Point Singularity Launcher 21815 | -2/Testing | Spotted Fortress 21948 | -2/Testing | Discovered new exit (range 6) 21948 | -2/Testing | Discovered new exit (range 6) 22028 | -2/Testing | Entered Protoforge 22028 | -2/Protoforge | Spotted B-90 Cyclops 22055 | -2/Protoforge | Superfortress began startup sequence 22119 | -2/Protoforge | Installed Integrated Dissipator, increased core heat dissipation (+20) 22122 | -2/Protoforge | Warped through subspace 22318 | -2/Protoforge | Identified Deep Network Scanner 22406 | -2/Protoforge | Spotted Hotshot 22406 | -2/Protoforge | Spotted Hotshot 22406 | -2/Protoforge | Spotted Hotshot 22413 | -2/Protoforge | Destroyed Hotshot 22416 | -2/Protoforge | Destroyed Hotshot 22427 | -2/Protoforge | Destroyed Hotshot 22453 | -2/Protoforge | Lost 7 parts (1p2n4u) 22471 | -2/Protoforge | Spotted Hotshot 22475 | -2/Protoforge | Spotted Hotshot 22476 | -2/Protoforge | Spotted Hotshot 22480 | -2/Protoforge | Destroyed Hotshot 22483 | -2/Protoforge | Released all parts (12) 22501 | -2/Protoforge | Destroyed 12 combat bots 22517 | -2/Protoforge | Core integrity fell below 50% 22517 | -2/Protoforge | Spotted Overlord 22518 | -2/Protoforge | Spotted Decapitator 22520 | -2/Protoforge | Spotted Decapitator 22520 | -2/Protoforge | Spotted Decapitator 22521 | -2/Protoforge | Spotted Decapitator 22525 | -2/Protoforge | Lrg. Botcube activated 22525 | -2/Protoforge | System corruption reached 30% 22527 | -2/Protoforge | Core integrity fell below 20% 22529 | -2/Protoforge | Destroyed by P-80 Master with Gamma Rifle Last Messages --------------- 22490_ U-05 Engineer lays Concrete. 22491_ U-05 Engineer builds a Wall. 22491_ U-05 Engineer lays Concrete. 22494_ System corrupted: Energy discharge (-26). 22494_ ALERT: Potential suspicious activity detected, Programmers report to Protoforge Zone 5F. 22509_ Microcatalyzer disabled. 22512_ ALERT: Suspicious intruders detected, dispatching Decapitator reinforcements to area. [Achievement: Please No, Not That] 22513_ Microcatalyzer disabled. 22513_ W-44 Eye sends out distress signal. 22518_ System corrupted: Substantial component data lost. 22519_ P-80 Master knocked back. 22519_ Knocked back. 22524_ Dropped Lrg. Botcube. 22525_ Lrg. Botcube begins transforming into Large Mutated Botcube. 22527_ Large Mutated Botcube reverted to Lrg. Botcube. 22528_ The unstable cave ceiling collapses. 22528_ Knocked back. Map ----- +----------------------------------------------------+ | ?????????????????????????????????????????????????? | | ?????????????????????????????????????????????????? | | ?????????????????????????????????????????????????? | | ?????????????????????????????????????????????????? | | ?????????????????????????????????????????????????? | | ?????????????????????????????????????????????????? | | ?????????????????????????????????????????????????? | | ?????????????????????????????????????????????????? | | ?????????????????????????????????????????????????? | | ?????????????????????????????????????????????????? | | ?????????????????????????????????????????????????? | | ??????????????????????????? ??????????????????? | | ?????????????????????????? #?????????????????? | | ??????????????????????????# #?????? ######????? | | ??????????????????????????# #?? ?? #??? | | ??????????????????????????# #? ?? #??? | | ??????????????????????????+ # ?# "" """ #??? | | ??????????????????????????# # ??# """ """ #??? | | ??????????????????????????# w/ ???# "R """ #??? | | ??????????????????????????# #???"# """ #??? | | ??????????????????????????# #? # """ #??? | | ??????????????????????????# # # #??? | | ?????????????????????????? ####+######## | | ????????????############## | | ?????????#### cc% H | | ?????????# p c@ " | | ?????????# c p p | | ?????????# """ """ ###### # ####### "" | | ?????????# """ """ &#???? #?????# | | ?????????# """ """ #?? #?????# """ | | ?????????# ## #?????# | | ??????# ## ####### """ | | ??????+ ## # # | | ??????# ## # # """ | | ??????###+####+### #### # # | | ?????????????????# #??# # # """ | | ?????????????????+ #??# # # | | ?????????????????###??# # # """ | | ??????????????????????# # # | | ??????????????????????# # # """ | | ??????????????????????############## # | | ???????????????????????????????????# + | | ???????????????????????????????????# # #### | | ???????????????????????????????????# # # | | ???????????############################### # | | ???????????# # | | ???????????# ^ # | | #############" """"""" """"""" ^ """" + | | # " """"""" """"""" ""R" #""" | | # " """"""" """"""" " """ | +----------------------------------------------------+ Best States ------------- Heat Dissipation 127 Energy Generation 75 Energy Capacity 950 Matter Stores 300 Matter Capacity 300 Sight Range 24 Robot Scan Range 16 Terrain Scan Density 10 Jamming Range 12 Base Temperature (-) 200 Armor Coverage 1250 Resistance: KI 30 Resistance: TH 30 Point Defense Rating 80 Weapon Cycling 20 Phase Shifting 15 Evasion (%) 70 Targeting Accuracy 8 Melee Accuracy 16 Core Analysis 6 Recoil Reduction 4 Matter Filtering 50 Particle Charging 30 Salvage Targeting 4 Offensive Hacking 45 Item Schematics ----------------- Assault Drone Bay | -5/Zhirov | Free Exp. Heat Sink | -5/Zhirov | Free Exp. Optical Array | -5/Zhirov | Free Imp. Arc Thrower | -5/Zhirov | Free Robot Schematics ------------------ None Fabricated ------------ Nothing Repaired ---------- Transmission Jammer | 15% | -2/Testing Studied --------- None Alien Tech Used ----------------- Integrated Dissipator Transdimensional Reconstructor Core Regenerator Achievements -------------- Help And Harvest Please No, Not That Challenges ------------ None Game ------ Seed BladeInterceptStripper Manual? 0 Play Time 02:51:55 Cumulative 426.1 hours Start 2026.01.12 @ 14:45:21 End 2026.01.12 @ 18:00:44 Sessions 3 Manual Loads 0 Difficulty Rogue Special Mode None Game No. 382 Rogue 346 Adventurer 36 Explorer 0 Win Type - Total 16 Types 7/0/9/0/0/0/0/0/0/0 Lore% 72 Gallery% 85 Achievement% 64 Wizard Run 0 Options --------- Layout 0 ASCII 0 Keyboard 0 Movement Mouse Keybinds 0 Fullscreen 1 Font 18/SmallcapsGlow Map View 76x50 Zoom Use 0% Tactical HUD 1 Map Filters NONE Filters NONE Steam 1 RUN: 8cca05aa-d3a8-403c-9868-998af39fe932